lending/lending_fUSD_20260102
["ID","MTS","AMOUNT","RATE_DAILY","PERIOD"]
[400323914,1767373829491,151.0,0.00016722,2]
[400323915,1767373830555,151.0,0.00016722,2]
[400323925,1767373832212,-524.45373049,0.00017521,2]
[400323928,1767373832267,-475.54626951,0.00017521,2]
[400323929,1767373832276,-500.0,0.00017521,2]
[400323930,1767373832285,-500.0,0.00017521,2]
[400323931,1767373832295,-1037.59604948,0.00017573,2]
[400323932,1767373832307,-3757.54575348,0.00017573,2]
[400323933,1767373832318,-781.15819704,0.00017573,2]
[400323934,1767373832328,-300.0,0.000182,2]
[400323935,1767373832341,-300.0,0.000182,2]
[400323936,1767373832350,-1015.73993786,0.000182,2]
[400323937,1767373832363,-184.26006214,0.000182,2]
[400323938,1767373832372,-2240.16964143,0.00018201,2]
[400323939,1767373832385,-3336.13035857,0.00018201,2]
[400323940,1767373832394,-1162.18948508,0.00018829,2]
[400323941,1767373832406,-3444.2674592,0.00018829,2]
[400323942,1767373832420,-834.46466102,0.00018829,2]
[400323943,1767373832431,-135.3783947,0.00018829,2]
[400323944,1767373832441,-200.54456707,0.00019082,2]
[400323945,1767373832451,-1147.8559071,0.00019456,2]
[400323946,1767373832465,-4428.4440929,0.00019456,2]
[400323947,1767373832474,-501.0,0.000196,2]
[400323948,1767373832483,-420.0,0.00019854,2]
[400323949,1767373832492,-420.0,0.00019854,2]
[400323951,1767373832502,-1680.0,0.00019951,2]
[400323953,1767373832510,-5576.3,0.00020084,2]
[400323955,1767373832520,-311.76695169,0.00020337,2]
[400323956,1767373832531,-189.23304831,0.00020337,2]
[400323957,1767373832540,-5576.3,0.00020711,2]
[400323959,1767373832549,-501.0,0.00021073,3]
[400323960,1767373832560,-1000.0,0.00021338,2]
[400323962,1767373832569,-5576.3,0.00021339,2]
[400323964,1767373832577,-368.86259358,0.00021659,2]
[400323966,1767373832589,-218.13740642,0.00021659,2]
[400323968,1767373832598,-587.0,0.00021659,2]
[400323970,1767373832607,-66.8428494,0.0002181,4]
[400323973,1767373832618,-434.1571506,0.0002181,4]
[400323975,1767373832628,-390.29344023,0.00021871,2]
[400323977,1767373832639,-1960.70655977,0.00021871,2]
[400323979,1767373832647,-5576.3,0.00021967,2]
[400323981,1767373832657,-501.0,0.00022546,4]
[400323983,1767373832666,-5576.3,0.00022594,2]
[400323985,1767373832675,-2393.94258071,0.00022638,2]
[400323987,1767373832686,-947.96197807,0.00022638,2]
[400323989,1767373832696,-1472.09544122,0.00022638,2]
[400323991,1767373832706,-2433.0,0.00022638,2]
[400323993,1767373832715,-200.0,0.0002279,2]
[400324005,1767373832901,-395.72,0.00022808,2]
[400324007,1767373832912,-185.81,0.00022993,2]
[400324008,1767373832922,-1500.0,0.00023049,2]
[400324010,1767373832931,-5576.3,0.00023222,2]
[400324011,1767373832940,-501.0,0.00023283,5]
[400324013,1767373832949,-248.95,0.0002341,2]
[400324015,1767373832959,-823.0,0.00023627,2]
[400324016,1767373832968,-823.0,0.00023627,2]
[400324018,1767373832977,-5576.3,0.00023849,2]
[400324020,1767373832994,-340.147217,0.00023968,2]
[400324021,1767373833010,-3292.0,0.00023976,2]
[400324023,1767373833020,-501.0,0.0002402,6]
[400324025,1767373833029,-168.0,0.00024389,2]
[400324026,1767373833038,-297.18,0.00024515,2]
[400324028,1767373833047,-2709.6208,0.00024515,2]
[400324030,1767373833057,-8874.46946052,0.00024615,2]
[400324031,1767373833068,-7631.69981,0.00024615,2]
[400324033,1767373833079,-340.82945619,0.00024615,2]
[400324035,1767373833088,-501.0,0.00024756,6]
[400324036,1767373833098,-244.0,0.0002537,2]
[400324038,1767373833107,-800.0,0.00025423,9]
[400324040,1767373833116,-800.0,0.00025423,9]
[400324041,1767373833125,-264.17054379,0.00025423,9]
[400324043,1767373833135,-471.84604647,0.00025423,9]
[400324045,1767373833146,-63.98340974,0.00025423,9]
[400324047,1767373833155,-800.0,0.00025423,9]
[400324048,1767373833164,-236.01659026,0.00025423,9]
[400324050,1767373833175,-413.55879027,0.00025423,9]
[400324052,1767373833186,-150.42461947,0.00025423,9]
[400324054,1767373833196,-797.88070603,0.00025423,9]
[400324055,1767373833207,-2.11929397,0.00025423,9]
[400324057,1767373833216,-355.88070603,0.00025423,9]
[400324059,1767373833228,-444.11929397,0.00025423,9]
[400324061,1767373833237,-800.0,0.00025423,9]
[400324062,1767373833246,-501.0,0.00025493,7]
[400324064,1767373833255,-150.99,0.00025496,2]
[400324065,1767373833265,-500.0,0.00025538,2]
[400324067,1767373833274,-500.0,0.00025538,2]
[400324069,1767373833283,-500.0,0.00025538,2]
[400324070,1767373833292,-500.0,0.00025538,2]
[400324072,1767373833301,-500.0,0.00025538,2]
[400324074,1767373833310,-500.0,0.00025538,2]
[400324075,1767373833320,-500.0,0.00025538,2]
[400324077,1767373833330,-500.0,0.00025538,2]
[400324078,1767373833340,-500.0,0.00025538,2]
[400324079,1767373833349,-500.0,0.00025538,2]
[400324080,1767373833358,-500.0,0.00025538,2]
[400324081,1767373833368,-500.0,0.00025538,2]
[400324082,1767373833378,-500.0,0.00025538,2]
[400324083,1767373833387,-500.0,0.00025538,2]
[400324084,1767373833396,-500.0,0.00025538,2]
[400324085,1767373833406,-500.0,0.00025538,2]
[400324086,1767373833416,-500.0,0.00025538,2]
[400324087,1767373833425,-500.0,0.00025538,2]
[400324088,1767373833434,-500.0,0.00025538,2]
[400324089,1767373833443,-500.0,0.00025538,2]
[400324090,1767373833451,-151.0,0.00025625,2]
[400324091,1767373833460,-151.0,0.00025625,2]
[400324092,1767373833469,-500.0,0.00025625,2]
[400324093,1767373833478,-500.0,0.00025625,2]
[400324094,1767373833487,-500.0,0.00025628,2]
[400324095,1767373833496,-1231.82726186,0.00025628,2]
[400324096,1767373833505,-500.0,0.00025628,2]
[400324097,1767373833514,-500.0,0.00025628,2]
[400324098,1767373833523,-1231.82726186,0.00025628,2]
[400324099,1767373833532,-403.50147677,0.00025628,2]
[400324100,1767373833541,-500.0,0.00025628,2]
[400324101,1767373833550,-1231.82726186,0.00025628,2]
[400324102,1767373833559,-500.0,0.00025628,2]
[400324103,1767373833567,-500.0,0.00025628,2]
[400324104,1767373833576,-1231.82726186,0.00025628,2]
[400324105,1767373833585,-500.0,0.00025628,2]
[400324106,1767373833594,-1231.82726186,0.00025628,2]
[400324107,1767373833604,-500.0,0.00025628,2]
[400324108,1767373833613,-1231.82726186,0.00025628,2]
[400324109,1767373833622,-500.0,0.00025628,2]
[400324110,1767373833631,-500.0,0.00025628,2]
[400324111,1767373833640,-1231.82726186,0.00025628,2]
[400324112,1767373833648,-500.0,0.00025628,2]
[400324113,1767373833658,-500.0,0.00025628,2]
[400324114,1767373833667,-1231.82726186,0.00025628,2]
[400324115,1767373833676,-698.75214709,0.00025628,2]
[400324117,1767373838403,-1249.75727279,0.00022638,2]
[400324118,1767373838418,-1429.28933894,0.00022638,2]
[400324119,1767373838624,-3864.95338827,0.00022638,2]
[400324120,1767373838635,-500.0,0.00025423,9]
[400324121,1767373838644,-533.07511477,0.00025628,2]
[400324122,1767373838654,-500.0,0.00025628,2]
[400324123,1767373838665,-500.0,0.00025628,2]
[400324124,1767373838675,-1231.82726186,0.00025628,2]
[400324125,1767373838685,-1231.82726186,0.00025628,2]
[400324126,1767373838695,-500.0,0.00025628,2]
[400324127,1767373838704,-504.1642341,0.00025628,2]
[400324128,1767373838714,-1231.82726186,0.00025628,2]
[400324129,1767373838724,-500.0,0.00025628,2]
[400324130,1767373838735,-1231.82726186,0.00025628,2]
[400324131,1767373838745,-500.0,0.00025628,2]
[400324132,1767373838755,-1231.82726186,0.00025628,2]
[400324133,1767373838766,-500.0,0.00025628,2]
[400324134,1767373838776,-1231.82726186,0.00025628,2]
[400324135,1767373838787,-500.0,0.00025628,2]
[400324136,1767373838801,-1231.82726186,0.00025628,2]
[400324137,1767373838811,-1231.82726186,0.00025628,2]
[400324138,1767373838821,-500.0,0.00025628,2]
[400324140,1767373838831,-1231.82726186,0.00025628,2]
[400324141,1767373838841,-500.0,0.00025628,2]
[400324143,1767373838852,-1231.82726186,0.00025628,2]
[400324145,1767373838862,-500.0,0.00025628,2]
[400324147,1767373838872,-1231.82726186,0.00025628,2]
[400324148,1767373838883,-1231.82726186,0.00025628,2]
[400324149,1767373838893,-1231.82726186,0.00025628,2]
[400324150,1767373838903,-500.0,0.00025628,2]
[400324151,1767373838915,-500.0,0.00025628,2]
[400324152,1767373838925,-500.0,0.00025628,2]
[400324153,1767373838936,-1231.82726186,0.00025628,2]
[400324154,1767373838947,-500.0,0.00025628,2]
[400324155,1767373838957,-1231.82726186,0.00025628,2]
[400324156,1767373838967,-1231.82726186,0.00025628,2]
[400324157,1767373838977,-500.0,0.00025628,2]
[400324158,1767373838987,-1231.82726186,0.00025628,2]
[400324159,1767373839002,-1231.82726186,0.00025628,2]
[400324160,1767373839012,-498.24175013,0.00025628,2]
[400324161,1767373839021,-1231.82726186,0.00025628,2]
[400324162,1767373839031,-500.0,0.00025628,2]
[400324163,1767373839041,-1231.82726186,0.00025628,2]
[400324164,1767373839051,-210.15209118,0.00025628,2]
[400324165,1767373839212,-289.84790882,0.00025628,2]
[400324166,1767373839222,-1231.82726186,0.00025628,2]
[400324167,1767373839232,-1231.82726186,0.00025628,2]
[400324168,1767373839242,-500.0,0.00025628,2]
[400324169,1767373839251,-1231.82726186,0.00025628,2]
[400324170,1767373839261,-1231.82726186,0.00025628,2]
[400324171,1767373839271,-500.0,0.00025628,2]
[400324172,1767373839280,-1231.82726186,0.00025628,2]
[400324173,1767373839290,-906.47753288,0.00025628,2]
[400324174,1767373839304,-325.34972898,0.00025628,2]
[400324175,1767373839314,-500.0,0.00025628,2]
[400324176,1767373839330,-1231.82726186,0.00025628,2]
[400324177,1767373839339,-1231.82726186,0.00025628,2]
[400324178,1767373839349,-500.0,0.00025628,2]
[400324179,1767373839359,-1231.82726186,0.00025628,2]
[400324180,1767373839370,-1231.82726186,0.00025628,2]
[400324181,1767373839379,-1231.82726186,0.00025628,2]
[400324182,1767373839389,-1231.82726186,0.00025628,2]
[400324183,1767373839398,-1231.82726186,0.00025628,2]
[400324184,1767373839410,-500.0,0.00025628,2]
[400324185,1767373839420,-1231.82726186,0.00025628,2]
[400324186,1767373839430,-1231.82726186,0.00025628,2]
[400324187,1767373839440,-500.0,0.00025628,2]
[400324188,1767373839449,-1231.82726186,0.00025628,2]
[400324189,1767373839459,-1231.82726186,0.00025628,2]
[400324190,1767373839469,-1231.82726186,0.00025628,2]
[400324191,1767373839478,-1231.82726186,0.00025628,2]
[400324192,1767373839487,-1231.82726186,0.00025628,2]
[400324193,1767373839497,-1231.82726186,0.00025628,2]
[400324194,1767373839506,-1231.82726186,0.00025628,2]
[400324195,1767373839515,-1231.82726186,0.00025628,2]
[400324196,1767373839525,-1231.82726186,0.00025628,2]
[400324197,1767373839537,-1231.82726186,0.00025628,2]
[400324198,1767373839546,-1231.82726186,0.00025628,2]
[400324199,1767373839556,-1231.82726186,0.00025628,2]
[400324200,1767373839566,-1231.82726186,0.00025628,2]
[400324201,1767373839576,-1231.82726186,0.00025628,2]
[400324202,1767373839586,-1231.82726186,0.00025628,2]
[400324203,1767373839596,-1231.82726186,0.00025628,2]
[400324204,1767373839606,-1231.82726186,0.00025628,2]
[400324205,1767373839616,-1231.82726186,0.00025628,2]
[400324206,1767373839626,-423.9050248,0.00025628,2]
[400324207,1767373839640,-390.805764,0.00025628,2]
[400324208,1767373839651,-417.11647306,0.00025628,2]
[400324209,1767373839662,-1231.82726186,0.00025628,2]
[400324210,1767373839672,-1231.82726186,0.00025628,2]
[400324211,1767373839682,-1231.82726186,0.00025628,2]
[400324212,1767373839692,-1231.82726186,0.00025628,2]
[400324213,1767373839701,-500.0,0.00025628,2]
[400324214,1767373839710,-500.0,0.00025628,2]
[400324215,1767373839720,-395.44222063,0.00025628,2]
[400324216,1767373839734,-104.55777937,0.00025628,2]
[400324217,1767373839743,-182.44222068,0.00025628,2]
[400324218,1767373839754,-67.55777932,0.00025628,2]
[400324219,1767373839763,-369.19445443,0.00025628,2]
[400324220,1767373839775,-835.85395392,0.00025628,2]
[400324221,1767373839785,-1205.04840835,0.00025628,2]
[400324222,1767373839795,-1205.04840835,0.00025628,2]
[400324223,1767373839804,-1205.04840835,0.00025628,2]
[400324224,1767373839814,-1205.04840835,0.00025628,2]
[400324225,1767373839823,-1205.04840835,0.00025628,2]
[400324226,1767373839833,-38.13409821,0.00025628,2]
[400324227,1767373839845,-1166.91431014,0.00025628,2]
[400324228,1767373839855,-1205.04840835,0.00025628,2]
[400324229,1767373839864,-1205.04840835,0.00025628,2]
[400324230,1767373839874,-1205.04840835,0.00025628,2]
[400324231,1767373839883,-1205.04840835,0.00025628,2]
[400324232,1767373839893,-448.00966065,0.00025628,2]
[400324233,1767373839904,-251.80538329,0.00025628,2]
[400324240,1767373840568,-505.23336441,0.00025628,2]
[400324241,1767373840578,-1205.04840835,0.00025628,2]
[400324242,1767373840592,-1205.04840835,0.00025628,2]
[400324243,1767373840603,-1205.04840835,0.00025628,2]
[400324244,1767373840613,-1205.04840835,0.00025628,2]
[400324245,1767373840622,-101.40216475,0.00025628,2]
[400324246,1767373840635,-1103.6462436,0.00025628,2]
[400324247,1767373840646,-1205.04840835,0.00025628,2]
[400324248,1767373840656,-1205.04840835,0.00025628,2]
[400324249,1767373840666,-1205.04840835,0.00025628,2]
[400324250,1767373840676,-1205.04840835,0.00025628,2]
[400324251,1767373840686,-1205.04840835,0.00025628,2]
[400324252,1767373840697,-1205.04840835,0.00025628,2]
[400324253,1767373840707,-500.0,0.00025628,2]
[400324254,1767373840717,-1539.78407722,0.00025628,2]
[400324255,1767373840728,-329.67712908,0.00025629,2]
[400324256,1767373840739,-1361.29,0.00025629,2]
[400324257,1767373840751,-449.625,0.00025629,2]
[400324258,1767373840763,-262.61499998,0.00025629,2]
[400324259,1767373840775,-347.45489711,0.00025629,2]
[400324260,1767373840786,-2751.39440627,0.00025629,2]
[400324261,1767373840797,-4497.95356756,0.00025629,2]
[400324262,1767373840807,-591.0958045,0.0002563,3]
[400324263,1767373840818,-1403.0,0.00025638,2]
[400324264,1767373840828,-3461.0,0.00025638,2]
[400324265,1767373840837,-613.0,0.00025638,2]
[400324267,1767373840846,-1328.0,0.00025638,2]
[400324268,1767373840856,-1265.0,0.00025638,2]
[400324269,1767373840865,-431.0,0.00025638,2]
[400324270,1767373840874,-4808.0,0.00025638,2]
[400324271,1767373840884,-2433.0,0.00025638,2]
[400324272,1767373840894,-298.689,0.00025638,2]
[400324273,1767373840904,-1051.75,0.00025639,2]
[400324274,1767373840914,-162.69488595,0.00025639,2]
[400324275,1767373840923,-500.0,0.00025639,2]
[400324276,1767373840932,-166.62400638,0.00025639,2]
[400324277,1767373840941,-168.06314347,0.00025639,2]
[400324278,1767373840951,-792.47905441,0.0002564,2]
[400324279,1767373840963,-8963.955,0.0002564,2]
[400324280,1767373840985,-276.871998,0.0002564,2]
[400324281,1767373840998,-854.0836,0.0002564,2]
[400324282,1767373841010,-5954.8,0.0002564,2]
[400324283,1767373841021,-9784.28034759,0.0002564,2]
[400324284,1767373841032,-5715.71965241,0.0002564,2]
[400324285,1767373841046,-703.4738453,0.0002564,2]
[400324286,1767373841058,-506.37642362,0.0002564,2]
[400324287,1767373841071,-1368.08453927,0.0002564,2]
[400324288,1767373841082,-1488.67317319,0.0002564,2]
[400324289,1767373841093,-217.66236621,0.0002564,2]
[400324290,1767373841104,-150.99,0.0002564,2]
[400324291,1767373841115,-572.11364757,0.0002564,2]
[400324292,1767373841127,-3816.56635243,0.0002564,2]
[400324293,1767373841138,-803.28311357,0.0002564,2]
[400324294,1767373841150,-9196.70688643,0.0002564,2]
[400324295,1767373841159,-999.99,0.0002564,2]
[400324296,1767373841170,-1196.31,0.0002564,2]
[400324297,1767373841180,-500.0,0.00025697,9]
[400324298,1767373841190,-109.47431105,0.00025732,3]
[400324299,1767373841202,-2254.90890695,0.00025732,3]
[400324300,1767373841212,-168.0,0.00025742,2]
[400324301,1767373841221,-692.73995649,0.00025742,2]
[400324315,1767373843987,-300.0,0.00022638,2]
[400324316,1767373843998,-265.0,0.00022638,2]
[400324317,1767373844008,-145.39994,0.00025742,2]
[400324318,1767373844019,-302.0,0.00025742,2]
[400324319,1767373844040,-8500.0,0.00025742,2]
[400324320,1767373844052,-359.85010351,0.00025742,2]
[400324321,1767373844061,-1195.8,0.00025742,2]
[400324322,1767373844071,-2641.5389394,0.00025742,2]
[400324323,1767373844081,-340.981756,0.00025742,2]
[400324324,1767373844092,-3488.91396297,0.00025742,2]
[400324325,1767373844103,-22215.37913688,0.00025742,2]
[400324326,1767373844908,-14095.87620475,0.00025742,2]
[400324327,1767373844920,-2605.74,0.00025742,2]
[400324328,1767373844929,-164.67,0.00025765,2]
[400324329,1767373844938,-1152.0,0.00025775,2]
[400324330,1767373844948,-1152.0,0.00025775,2]
[400324331,1767373844957,-1051.75,0.00025913,2]
[400324332,1767373844967,-500.0,0.00025971,9]
[400324333,1767373844976,-341.04104951,0.00026163,2]
[400324334,1767373844985,-168.0,0.00026176,2]
[400324335,1767373844994,-1051.75,0.00026187,2]
[400324336,1767373845004,-501.0,0.00026229,8]
[400324337,1767373845013,-500.0,0.00026245,9]
[400324338,1767373845022,-4609.0,0.00026284,2]
[400324339,1767373845221,-1051.75,0.00026461,2]
[400324340,1767373845232,-629.34910635,0.00026519,9]
[400324341,1767373845241,-1051.75,0.00026735,2]
[400324342,1767373845251,-591.0958045,0.00026787,3]
[400324343,1767373845259,-200.0,0.0002685,2]
[400324344,1767373845268,-501.0,0.00026966,9]
[400324345,1767373845277,-1051.75,0.00027009,2]
[400324346,1767373845286,-500.0,0.00027139,2]
[400324347,1767373845296,-1051.75,0.00027283,2]
[400324348,1767373845305,-5322.0,0.00027342,2]
[400324349,1767373845314,-295.19,0.00027397,30]
[400324350,1767373845324,-591.0958045,0.0002754,3]
[400324351,1767373845339,-1051.7559027,0.00027557,14]
[400324352,1767373845350,-501.0,0.00027702,9]
[400324353,1767373845359,-168.0,0.00027812,3]
[400324354,1767373845369,-576.0,0.00028117,2]
[400324355,1767373845380,-466.0,0.00028117,2]
[400324356,1767373845389,-151.80413951,0.000284,2]
[400324357,1767373845398,-501.0,0.00028439,10]
[400324358,1767373845408,-613.0,0.00028638,2]
[400324359,1767373845417,-1328.0,0.00028638,2]
[400324360,1767373845427,-989.813,0.00028638,2]
[400324361,1767373845437,-314.0,0.00028813,2]
[400324362,1767373845446,-591.0958045,0.00029118,3]
[400324363,1767373845456,-2699.24,0.00029128,2]
[400324364,1767373845465,-501.0,0.00029176,11]
[400324365,1767373845475,-591.0958045,0.00029194,3]
[400324366,1767373845484,-11317.33,0.00029204,2]
[400324367,1767373845494,-150.0,0.000293,14]
[400324368,1767373845504,-1852.42,0.00029735,2]
[400324369,1767373845513,-257.34,0.00029875,2]
[400324370,1767373845522,-501.0,0.00029912,11]
[400324371,1767373845531,-153.94,0.00030345,2]
[400324372,1767373845541,-501.0,0.00030649,12]
[400324373,1767373845551,-591.0958045,0.00031261,3]
[400324374,1767373845560,-500.0,0.00031271,2]
[400324375,1767373845569,-533.88981491,0.00031271,2]
[400324376,1767373845579,-500.0,0.00031271,2]
[400324377,1767373845589,-250.0,0.00031271,2]
[400324378,1767373845598,-250.0,0.00031271,2]
[400324379,1767373845608,-500.0,0.00031271,2]
[400324380,1767373845617,-524.67228316,0.00031271,2]
[400324381,1767373845627,-250.0,0.00031271,2]
[400324382,1767373845636,-250.0,0.00031271,2]
[400324383,1767373845645,-250.0,0.00031271,2]
[400324384,1767373845654,-287.35643402,0.00031271,2]
[400324385,1767373845664,-501.0,0.00031385,13]
[400324386,1767373845673,-295.19,0.00031723,30]
[400324387,1767373845683,-591.0958045,0.00031751,3]
[400324388,1767373845692,-553.64373807,0.00031819,2]
[400324389,1767373845702,-153.94,0.0003203,2]
[400324390,1767373845711,-501.0,0.00032122,14]
[400324391,1767373845720,-160.84,0.00032664,2]
[400324392,1767373845730,-501.0,0.00032859,14]
[400324393,1767373845739,-275.010753,0.00033,14]
[400324394,1767373845749,-1000.0,0.00033369,2]
[400324395,1767373845758,-248.95,0.00033462,2]
[400324396,1767373845768,-501.0,0.00033595,15]
[400324397,1767373845780,-150.0,0.00033616,2]
[400324398,1767373845790,-153.94,0.00033716,2]
[400324399,1767373845799,-2397.0,0.000343,5]
[400324400,1767373845809,-501.0,0.00034332,16]
[400324401,1767373845818,-591.0958045,0.00034568,3]
[400324402,1767373845828,-1000.0,0.0003462,2]
[400324403,1767373845838,-2000.0,0.000348,2]
[400324404,1767373845847,-1182.191609,0.0003498,3]
[400324405,1767373845857,-212645.1350483,0.00035,7]
[400324406,1767373845868,-501.0,0.00035068,16]
[400324407,1767373845877,-15500.0,0.00035099,2]
[400324408,1767373845887,-157.415,0.00035188,41]
[400324409,1767373845896,-1029.036,0.00035188,41]
[400324410,1767373845906,-204.76812576,0.00035199,15]
[400324411,1767373845917,-458.88304557,0.00035299,120]
[400324412,1767373845926,-500.0,0.00035299,120]
[400324413,1767373845936,-500.0,0.00035299,120]
[400324414,1767373845945,-500.0,0.00035299,120]
[400324415,1767373845955,-500.0,0.00035299,120]
[400324416,1767373845964,-500.0,0.00035299,120]
[400324417,1767373845974,-250.05940541,0.00035299,2]
[400324418,1767373845983,-500.0,0.00035299,120]
[400324419,1767373845992,-500.0,0.00035299,120]
[400324420,1767373846005,-500.0,0.00035299,120]
[400324421,1767373846014,-500.0,0.00035299,120]
[400324422,1767373846023,-500.0,0.00035299,2]
[400324423,1767373846032,-500.0,0.00035299,30]
[400324424,1767373846043,-500.0,0.00035299,120]
[400324425,1767373846054,-500.0,0.00035299,45]
[400324426,1767373846063,-2000.0,0.000353,2]
[400324427,1767373846074,-332.82,0.00035326,14]
[400324428,1767373846083,-153.94,0.00035402,2]
[400324429,1767373846094,-155.19590045,0.00035616,103]
[400324430,1767373846103,-501.0,0.00035805,17]
[400324431,1767373846114,-1000.0,0.00035871,2]
[400324433,1767373846123,-295.19,0.00036049,30]
[400324434,1767373846134,-501.0,0.00036541,18]
[400324435,1767373846143,-478.0,0.000367,2]
[400324436,1767373846152,-997.0,0.000367,2]
[400324437,1767373846162,-306.0,0.000367,2]
[400324438,1767373846171,-153.94,0.00037088,2]
[400324439,1767373846181,-1000.0,0.00037123,2]
[400324440,1767373846191,-187.97768291,0.000372,120]
[400324441,1767373846200,-501.0,0.00037278,18]
[400324442,1767373846210,-248.95,0.00037623,2]
[400324443,1767373846220,-500.0,0.00037999,120]
[400324444,1767373846230,-500.0,0.00037999,30]
[400324445,1767373846239,-500.0,0.00037999,120]
[400324446,1767373846249,-4983.24308995,0.00038,2]
[400324447,1767373846259,-501.0,0.00038015,19]
[400324448,1767373846268,-5322.0,0.00038279,2]
[400324449,1767373846278,-1000.0,0.00038374,2]
[400324450,1767373846288,-150.0,0.00038466,7]
[400324451,1767373846297,-150.0,0.00038466,7]
[400324452,1767373846307,-150.0,0.00038466,7]
[400324453,1767373846317,-150.0,0.00038466,7]
[400324454,1767373846330,-150.0,0.00038466,7]
[400324455,1767373846340,-150.0,0.00038466,7]
[400324456,1767373846349,-150.0,0.00038466,7]
[400324457,1767373846360,-150.0,0.00038466,7]
[400324458,1767373846371,-150.0,0.00038466,7]
[400324459,1767373846381,-185.68075305,0.00038466,7]
[400324460,1767373846390,-250.03401256,0.00038466,7]
[400324461,1767373846401,-150.0,0.00038466,7]
[400324462,1767373846411,-150.0,0.00038466,7]
[400324463,1767373846422,-2463.0,0.000385,5]
[400324464,1767373846432,-2000.0,0.000385,2]
[400324465,1767373846443,-300.0,0.00038609,2]
[400324466,1767373846452,-300.0,0.00038609,2]
[400324467,1767373846462,-150.0,0.00038703,7]
[400324468,1767373846471,-150.0,0.00038751,7]
[400324469,1767373846480,-501.0,0.00038751,20]
[400324470,1767373846490,-153.94,0.00038774,2]
[400324471,1767373846499,-150.0,0.00038822,7]
[400324472,1767373846509,-2936.7817,0.00038888,30]
[400324473,1767373846519,-150.0,0.00038893,7]
[400324474,1767373846528,-150.0,0.00038941,7]
[400324475,1767373846538,-2000.0,0.00039,2]
[400324476,1767373846547,-150.0,0.00039036,7]
[400324477,1767373846556,-150.0,0.00039076,7]
[400324478,1767373846566,-150.0,0.00039178,7]
[400324479,1767373846575,-150.0,0.00039178,7]
[400324480,1767373846585,-150.0,0.00039321,7]
[400324481,1767373846595,-150.0,0.00039321,7]
[400324482,1767373846605,-150.0,0.00039416,7]
[400324483,1767373846614,-501.0,0.00039488,21]
[400324484,1767373846624,-150.0,0.00039534,7]
[400324485,1767373846634,-150.0,0.00039534,7]
[400324486,1767373846644,-150.0,0.00039534,7]
[400324487,1767373846654,-150.0,0.00039605,7]
[400324488,1767373846664,-150.0,0.00039653,7]
[400324489,1767373846674,-150.0,0.00039687,7]
[400324490,1767373846684,-150.0,0.00039748,7]
[400324491,1767373846693,-150.0,0.0003989,7]
[400324492,1767373846703,-150.0,0.0003989,7]
[400324493,1767373846712,-150.0,0.0003989,7]
[400324494,1767373846721,-571.02338546,0.00039999,120]
[400324495,1767373846731,-500.0,0.00039999,120]
[400324496,1767373846740,-500.0,0.00039999,120]
[400324497,1767373846749,-500.0,0.00039999,120]
[400324498,1767373846759,-500.0,0.00039999,120]
[400324499,1767373846768,-500.0,0.00039999,120]
[400324500,1767373846778,-500.0,0.00039999,120]
[400324501,1767373846787,-382.48973277,0.00039999,120]
[400324502,1767373846797,-500.0,0.00039999,2]
[400324503,1767373846806,-500.0,0.00039999,30]
[400324504,1767373846815,-500.0,0.00039999,45]
[400324505,1767373846825,-151.0,0.0004,120]
[400324507,1767373846835,-152.0,0.0004,120]
[400324509,1767373846844,-480.21232696,0.00040124,15]
[400324511,1767373846853,-150.0,0.00040128,7]
[400324513,1767373846862,-689.84,0.0004014,30]
[400324514,1767373846871,-150.0,0.00040175,7]
[400324515,1767373846881,-150.0,0.00040175,7]